[Event "Budapest One Week IM-B 03-2025"]
[Site "Budapest"]
[Date "2025.03.20"]
[Round "6.1"]
[White "Pribelszky, Bence"]
[Black "Venkatesh, Narayan"]
[Result "1-0"]
[Annotator "TA"]
[ECO "A20"]
[WhiteElo "2400"]
[BlackElo "2203"]
[PlyCount "69"]
[EventDate "2025.03.17"]
[EventType "tourn"]
[EventCountry "HUN"]
[SourceTitle "playchess.com"]
[Source "ChessBase"]
[SourceQuality "1"]
[TimeControl "5400+30"]

{[%evp 11,67,21,4,7,14,14,12,2,8,0,0,-11,0,-7,0,0,-3,-9,29,-23,0,8,4,0,0,0,87,100,89,96,115,90,82,62,295,288,390,383,477,390,357,310,289,239,369,364,375,354,370,370,371,372,343,357,485,460,866,861]} 1. c4 {[%emt 0:14:02]} e5 {[%emt 0:00:15]} 2. g3 {[%emt 0:00:08]} Nf6 {[%emt 0:00:14]} 3. Bg2 {[%emt 0:00:06]} d5 {[%emt 0:00:31]} 4. cxd5 {[%emt 0:00:12]} Nxd5 {[%emt 0:00:04]} 5. Nf3 {[%emt 0:00:03]} Nc6 {[%emt 0:00:10]} 6. O-O {[%emt 0:00:30]} Nb6 {[%emt 0:00:34]} 7. b3 {[%emt 0:00:16] A20: English Opening: 1...e5.} Bd6 {[%emt 0:05:04]} 8. Bb2 {[%emt 0:02:09]} O-O {[%emt 0:00:55]} 9. Nc3 {[%emt 0:02:59] The position is equal.} Re8 {[%emt 0:04:47]} 10. d4 {[%emt 0:12:13]} e4 {[%emt 0:13:59]} 11. Nd2 {[%emt 0:00:19]} f5 {[%emt 0:02:23][%cal Od6e7]} 12. Nc4 {[%emt 0:00:16]} Bb4 $146 {[%emt 0:16:51]} (12... Bf8 13. e3 Nb4 14. f3 exf3 15. Bxf3 N6d5 16. Nxd5 Nxd5 17. Qd3 g6 18. Rae1 Bg7 {½-½ Kerr,S (2610)-Sferle,M (2550) AUS-ROM email 2006}) 13. e3 {[%emt 0:06:35]} Be6 {[%emt 0:05:04]} 14. Qe2 {[%emt 0:00:39]} Nd5 {[%emt 0:03:35]} 15. Nd1 {[%emt 0:03:30]} (15. Nxd5 $142 Bxd5 16. Rfd1) 15... Bf8 {[%emt 0:04:00]} 16. f3 {[%emt 0:04:45]} exf3 {[%emt 0:02:42]} 17. Qxf3 {[%emt 0:02:46]} g6 {[%emt 0:04:39]} 18. Nc3 {[%emt 0:01:58][%cal Bd1c3,Bc3e4,Be4c5][%mdl 32]} Ncb4 {[%emt 0:01:10] [#]} (18... Nce7 $11) 19. e4 $1 $16 {[%emt 0:02:44]} fxe4 {[%emt 0:00:54]} 20. Nxe4 {[%emt 0:00:16]} c6 {[%emt 0:17:23]} 21. Nc5 {[%emt 0:03:30] White is more active.} Qc7 {[%emt 0:05:52]} 22. Rae1 {[%emt 0:06:44] White has strong rooks and is better} Bf7 {[%emt 0:01:52] Loses the game.} (22... Bf5 $14) 23. Ne5 $18 {[%emt 0:01:54][%cal Bc4e5,Be5g4,Bg4h6][%mdl 32]} Re7 {[%emt 0:04:57] Wards off Ned7} 24. Bh3 {[%emt 0:06:48] and Nxf7 would now be decisive} Rae8 {[%emt 0:01:51]} 25. Bd7 {[%emt 0:01:55]} Bg7 {[%emt 0:01:28]} 26. Bxe8 {[%emt 0:02:08]} Bxe8 {[%emt 0:00:11]} 27. Ng4 {[%emt 0:08:14]} Bf7 {[%emt 0:01:39] [#] Inhibits Ne6.} (27... h5 {might work better.}) 28. Qxf7+ $3 {[%emt 0:07:40][%mdl 512]} Rxf7 {[%emt 0:00:17]} 29. Re8+ {[%emt 0:00:03]} Rf8 {[%emt 0:00:33]} 30. Rfxf8+ {[%emt 0:01:32]} Bxf8 {[%emt 0:00:01]} 31. Nh6+ {[%emt 0:01:39]} (31. Ne6 Qe7 32. Nh6+ (32. Rxe7 Bxe7 33. Nh6+ Kh8 $11) 32... Kh8 33. Rxf8+ (33. Rxe7 Bxe7 34. a4 Nd3 $11) 33... Qxf8 34. Nxf8 Kg7 $16) 31... Kg7 {[%emt 0:01:18]} ({Avoid the trap} 31... Kh8 $2 32. Rxf8+ Kg7 33. Ne6+ Kxh6 34. Bc1+ (34. Nxc7 Nxc7 35. Bc1+ g5 $18) 34... g5 35. Bxg5+ (35. Nxc7 Nxc7 36. Rg8 Ne6 $18) 35... Kg6 36. Nxc7 $18) 32. Ne6+ {[%emt 0:00:10]} Kf6 {[%emt 0:00:38]} 33. Ng4+ {[%emt 0:03:13]} Kf5 {[%emt 0:00:34]} (33... Kf7 $142) 34. Nxc7 {[%emt 0:00:12]} Nxc7 {[%emt 0:00:23]} 35. Ne3+ {[%emt 0:00:05] Weighted Error Value: White=0.16 (very precise) /Black=0.65  Loses game:     	---       	Black=1      Mistake:       	White=1     	Black=3      Inaccurate:     	---       	Black=4      OK:         	White=12    	Black=11     Best:        	White=3     	Black=2      Strong:       	White=1     	---} 1-0

[Event "Budapest One Week IM-B 03-2025"]
[Site "Budapest"]
[Date "2025.03.20"]
[Round "6.2"]
[White "Shah, Vishwa"]
[Black "Turcsanyi, Vince Gergo"]
[Result "0-1"]
[Annotator "TA"]
[ECO "C72"]
[WhiteElo "2172"]
[BlackElo "2285"]
[PlyCount "118"]
[EventDate "2025.03.17"]
[EventType "tourn"]
[EventCountry "HUN"]
[SourceTitle "playchess.com"]
[Source "ChessBase"]
[SourceQuality "1"]
[TimeControl "5400+30"]

{[%evp 19,118,50,52,20,64,43,30,21,32,21,59,49,53,10,23,-25,-16,-9,86,115,101,18,18,18,23,25,29,41,38,-7,8,19,25,0,0,0,0,0,0,-8,93,40,13,7,109,108,88,112,133,115,155,130,186,182,171,175,173,68,123,101,131,6,0,3,14,7,8,0,-19,-65,-54,-77,-71,-136,-125,-120,-140,-124,-70,-133,-127,-135,-152,-131,-144,-127,-145,-173,-76,-335,-344,-436,-432,-408,-338,-516,-509,-500,-501,-662,-650]} 1. e4 {[%emt 0:00:01]} e5 {[%emt 0:00:33]} 2. Nf3 {[%emt 0:00:11]} Nc6 {[%emt 0:00:06]} 3. Bb5 {[%emt 0:00:07]} a6 {[%emt 0:00:07]} 4. Ba4 {[%emt 0:00:04]} d6 {[%emt 0:00:14]} 5. O-O {[%emt 0:00:19]} Nge7 {[%emt 0:00:44]} 6. c3 {[%emt 0:00:37]} Bd7 {[%emt 0:00:20]} 7. d4 {[%emt 0:01:09]} g6 {[%emt 0:00:27]} 8. dxe5 {[%emt 0:04:30]} dxe5 {[%emt 0:03:11]} 9. Be3 {[%emt 0:00:18]} Bg7 {[%emt 0:01:18]} 10. Nbd2 {[%emt 0:01:36]} O-O {[%emt 0:00:25]} 11. Qe2 {[%emt 0:03:15] C76: Ruy Lopez: Deferred Steinitz: 5 c3 Bd7 6 d4 g6.} h6 {[%emt 0:05:19]} 12. Bc5 $146 {[%emt 0:05:32]} ({Predecessor:} 12. Rfd1 Qc8 13. Nf1 b5 14. Bc2 Be6 15. h3 Na5 16. Bc5 Re8 17. b3 Nb7 18. Ba3 {½-½ Ostashevsky,G (2167)-Oshevnev,A (2165) Russia CC-ch 2007 (1)}) 12... Re8 {[%emt 0:10:00]} 13. Rfe1 {[%emt 0:02:18] White has an edge.} b6 {[%emt 0:14:40]} 14. Ba3 {[%emt 0:00:51]} b5 {[%emt 0:00:15]} 15. Bc2 {[%emt 0:00:45]} g5 {[%emt 0:00:07]} 16. Nf1 {[%emt 0:06:52]} Ng6 {[%emt 0:05:18][%cal Be7g6,Bg6f4,Bf4h3][%mdl 32]} 17. g3 {[%emt 0:01:35]} (17. Red1 $142) 17... g4 $11 {[%emt 0:15:09]} 18. N3d2 {[%emt 0:00:51]} Qg5 {[%emt 0:00:31]} (18... Nf4 $1 $11 19. gxf4 exf4) 19. Ne3 {[%emt 0:05:15]} Nf4 {[%emt 0:08:36] Prevents Nd5.} 20. Qf1 {[%emt 0:04:58]} (20. gxf4 $16 exf4 21. Nd5) 20... Nh3+ {[%emt 0:03:25]} 21. Kh1 {[%emt 0:00:08]} Rad8 {[%emt 0:05:24][%cal Ob5b4]} 22. Rad1 {[%emt 0:01:57]} Be6 {[%emt 0:00:37][%cal Oh6h5]} 23. f3 {[%emt 0:08:52]} h5 {[%emt 0:01:50]} (23... Bxa2 $2 24. fxg4 Nd4 25. cxd4 $18 (25. Qxh3 Nxc2 26. Nxc2 Rxd2 $17)) 24. Qg2 {[%emt 0:03:55][%cal Oe3d5]} Bh6 {[%emt 0:06:39]} (24... Bxa2 $6 25. b3 $16) 25. Bc5 {[%emt 0:01:06]} Nb8 {[%emt 0:02:16] [#]} (25... Bxa2 26. fxg4 hxg4 27. b3 $16) 26. Nd5 $1 {[%emt 0:11:45]} c6 {[%emt 0:06:26]} 27. Be3 {[%emt 0:00:19]} Qg7 {[%emt 0:00:39]} 28. Bxh6 {[%emt 0:00:27]} Qxh6 {[%emt 0:00:01]} 29. Ne3 {[%emt 0:05:25]} Rd7 {[%emt 0:00:59]} (29... Bxa2 $2 30. fxg4 Ng5 31. b3 $18 (31. Nf5 Qh7 $18)) (29... Nd7 $1 $11) 30. Ndf1 {[%emt 0:01:15]} (30. fxg4 $16 hxg4 31. Bb3) 30... Red8 $14 {[%emt 0:00:33]} (30... Bxa2 $2 31. fxg4 Ng5 32. h4 $18 (32. Nf5 Qf8 $18)) 31. Rxd7 {[%emt 0:02:27]} Rxd7 {[%emt 0:00:08]} (31... Nxd7 $11 {keeps the balance.} 32. Rd1 Qf8 (32... Bxa2 $2 33. fxg4 Ng5 34. h4 $18)) 32. Nf5 $36 {[%emt 0:00:19][%mdl 2048] White is really pushing.} Qg5 {[%emt 0:02:45]} 33. fxg4 {[%emt 0:00:18]} hxg4 {[%emt 0:00:42][%cal Oc6c5]} 34. N1e3 {[%emt 0:00:04]} Bxf5 {[%emt 0:05:56]} 35. exf5 {[%emt 0:00:22]} (35. Nxf5 $2 Rd2 36. Re2 Rxe2 37. Qxe2 Qc1+ 38. Bd1 Qxd1+ 39. Qxd1 Nf2+ 40. Kg2 Nxd1 $19) 35... f6 {[%emt 0:00:55]} (35... Rd6 $16) 36. Qe2 $18 {[%emt 0:00:37]} c5 {[%emt 0:01:22][%cal Bc6c5,Bc5c4][%mdl 32]} 37. Be4 {[%emt 0:00:32] Against Nc6} (37. Qxg4 $2 Nf2+ 38. Kg1 Nxg4 $19) (37. Nxg4 $6 Rd2 38. Qe4 (38. Nxf6+ Kh8 $11) 38... Nd7 $16) 37... c4 {[%emt 0:00:30]} 38. Kg2 {[%emt 0:03:28]} (38. Nxg4 $6 Rd2 39. Qf3 (39. Nxf6+ Kg7 $17) 39... Kg7 $14) (38. b3 $18) 38... Rg7 {[%emt 0:00:26]} (38... Nf4+ $1 $14 39. gxf4 exf4) 39. Rd1 {[%emt 0:00:34]} Nd7 {[%emt 0:00:25][%cal Oh3f4] [#]} 40. Nxg4 {[%emt 0:03:23]} Nf4+ $11 {[%emt 0:00:14]} 41. gxf4 {[%emt 0:00:08]} Qxg4+ {[%emt 0:00:03]} 42. Qxg4 {[%emt 0:03:49]} Rxg4+ {[%emt 0:00:01][%mdl 4096] Endgame KRB-KRN. White is a pawn up.} 43. Kf3 {[%emt 0:01:17]} Rxf4+ {[%emt 0:00:05]} 44. Ke3 {[%emt 0:00:01]} (44. Kg3 $11 {is superior.}) 44... Nc5 $15 {[%emt 0:00:42]} 45. Bc2 {[%emt 0:00:17]} Rh4 {[%emt 0:01:22]} 46. Rg1+ {[%emt 0:01:40]} (46. Rd5 $142 Rxh2 (46... Rh3+ 47. Ke2 $15) 47. Rxc5 Rxc2 48. Rc6) 46... Kf7 $17 {[%emt 0:00:07]} 47. Rg2 {[%emt 0:00:02]} Rh3+ {[%emt 0:00:21]} 48. Kd2 {[%emt 0:00:23]} Nd3 {[%emt 0:01:26]} ({Better is} 48... Ke7 $17 49. Kd1 e4) 49. b3 {[%emt 0:00:45]} (49. Bxd3 $15 cxd3 50. Rg4) 49... Nf4 {[%emt 0:00:06]} 50. Rf2 {[%emt 0:00:05]} Nd5 {[%emt 0:00:26]} 51. bxc4 {[%emt 0:00:23]} bxc4 {[%emt 0:00:06]} 52. Be4 {[%emt 0:02:02]} Nxc3 {[%emt 0:00:26] Black is much more active.} 53. Bb7 {[%emt 0:01:02]} Rd3+ {[%emt 0:01:42]} (53... Nxa2 $19 {is more deadly.} 54. Bd5+ Ke7 55. Bxc4 Nb4) 54. Kc2 {[%emt 0:00:11][%mdl 8192]} (54. Kc1 $17 {is the only way for White.}) 54... Nxa2 $19 {[%emt 0:00:19]} 55. h4 {[%emt 0:03:36]} Nb4+ {[%emt 0:00:04]} 56. Kc1 {[%emt 0:00:35]} Rh3 {[%emt 0:01:03] Strongly threatening ...Nd3+.} 57. Rd2 {[%emt 0:00:12]} (57. Rf3 $142 Rxh4 58. Ra3) 57... c3 {[%emt 0:00:33] Black is clearly winning.} 58. Rd7+ {[%emt 0:00:29]} Ke8 {[%emt 0:00:07]} 59. Rc7 {[%emt 0:00:09]} Rg3 {[%emt 0:00:23] Black used his chance.   Weighted Error Value: White=0.38/Black=0.19 (very precise)   Loses game:     	White=1     	---        Mistake:       	White=9     	Black=7      Inaccurate:     	White=4     	Black=3      OK:         	White=17    	Black=21     Best:        	White=3     	Black=7} 0-1

[Event "Budapest One Week IM-B 03-2025"]
[Site "Budapest"]
[Date "2025.03.20"]
[Round "6.3"]
[White "Ongut, Tamas Gunes"]
[Black "Jing, Andrew"]
[Result "1/2-1/2"]
[Annotator "NA RC"]
[ECO "A05"]
[WhiteElo "2290"]
[BlackElo "2198"]
[PlyCount "75"]
[EventDate "2025.03.17"]
[EventType "tourn"]
[EventCountry "HUN"]
[SourceTitle "playchess.com"]
[Source "ChessBase"]
[SourceQuality "1"]
[TimeControl "5400+30"]

1. Nf3 {[%emt 0:17:49]} Nf6 {[%emt 0:00:04]} 2. g3 {[%emt 0:00:14]} g6 {[%emt 0:00:05]} 3. b3 {[%emt 0:00:06]} Bg7 {[%emt 0:00:05]} 4. Bb2 {[%emt 0:00:07]} O-O {[%emt 0:00:05]} 5. Bg2 {[%emt 0:00:06]} c5 {[%emt 0:00:07]} 6. c4 {[%emt 0:00:21]} d6 {[%emt 0:00:05]} 7. d4 {[%emt 0:00:07]} d5 {[%emt 0:02:54]} 8. dxc5 {[%emt 0:00:28]} dxc4 {[%emt 0:01:17]} 9. Qxd8 {[%emt 0:01:11]} Rxd8 {[%emt 0:00:04]} 10. Nbd2 {[%emt 0:02:15]} cxb3 {[%emt 0:02:36]} 11. Nxb3 {[%emt 0:01:01]} Nc6 {[%emt 0:01:09]} 12. O-O {[%emt 0:00:08]} Be6 {[%emt 0:03:47]} 13. Ne5 {[%emt 0:01:39]} Nxe5 {[%emt 0:08:44]} 14. Bxe5 {[%emt 0:00:09]} Bd5 {[%emt 0:00:15]} 15. Rfd1 {[%emt 0:01:56]} Bxg2 {[%emt 0:00:39]} 16. Kxg2 {[%emt 0:00:07]} Rxd1 {[%emt 0:08:00]} 17. Rxd1 {[%emt 0:00:08]} Rc8 {[%emt 0:00:03]} 18. Rd4 {[%emt 0:03:34]} b6 {[%emt 0:04:22]} 19. cxb6 {[%emt 0:01:02]} axb6 {[%emt 0:00:03]} 20. Kf3 {[%emt 0:00:53]} Ne8 {[%emt 0:03:26]} 21. Bxg7 {[%emt 0:00:11]} Kxg7 {[%emt 0:00:01]} 22. Rd7 {[%emt 0:01:46]} Kf8 {[%emt 0:02:30]} 23. Rb7 {[%emt 0:01:25]} Ra8 {[%emt 0:01:05]} 24. Rxb6 {[%emt 0:00:10]} Rxa2 {[%emt 0:00:08]} 25. Nd4 {[%emt 0:05:32]} Nd6 {[%emt 0:03:49]} 26. Nc6 {[%emt 0:00:17]} Ra3+ {[%emt 0:00:54]} 27. e3 {[%emt 0:00:10]} Ra8 {[%emt 0:00:20]} 28. g4 {[%emt 0:01:11]} h6 {[%emt 0:02:02]} 29. h4 {[%emt 0:00:35]} Rc8 {[%emt 0:00:45]} 30. Nd4 {[%emt 0:03:35]} Rc5 {[%emt 0:01:09]} 31. Nc6 {[%emt 0:01:35]} Ke8 {[%emt 0:03:56]} 32. Nd4 {[%emt 0:02:03]} h5 {[%emt 0:01:07]} 33. g5 {[%emt 0:00:06]} Kd7 {[%emt 0:02:41]} 34. Ra6 {[%emt 0:00:58]} e5 {[%emt 0:01:20]} 35. Ra7+ {[%emt 0:00:02]} Ke8 {[%emt 0:06:00]} 36. Ra6 {[%emt 0:00:04]} Kd7 {[%emt 0:00:57]} 37. Ra7+ {[%emt 0:00:08]} Ke8 {[%emt 0:03:20]} 38. Ra8+ {[%emt 0:00:08]} 1/2-1/2

[Event "Budapest One Week IM-B 03-2025"]
[Site "Budapest"]
[Date "2025.03.20"]
[Round "6.4"]
[White "Mrithyunjay Mahadevan"]
[Black "Varga, Zoltan"]
[Result "1-0"]
[Annotator "TA"]
[ECO "B01"]
[WhiteElo "2295"]
[BlackElo "2305"]
[PlyCount "49"]
[EventDate "2025.03.17"]
[EventType "tourn"]
[EventCountry "HUN"]
[SourceTitle "playchess.com"]
[Source "ChessBase"]
[SourceQuality "1"]
[TimeControl "5400+30"]

{[%evp 9,49,48,44,49,48,53,51,46,95,93,99,4,100,106,103,93,133,113,139,141,134,137,139,133,141,135,128,129,192,189,180,184,187,141,281,284,272,277,477,474,453,442]} 1. e4 {[%emt 0:05:21]} d5 {[%emt 0:02:58]} 2. exd5 {[%emt 0:00:06]} Qxd5 {[%emt 0:00:04]} 3. Nc3 {[%emt 0:00:06]} Qd6 {[%emt 0:00:04]} 4. d4 {[%emt 0:00:08]} Nf6 {[%emt 0:00:03]} 5. Nf3 {[%emt 0:00:15]} Nc6 {[%emt 0:00:05]} 6. Nb5 {[%emt 0:04:24] B01: Scandinavian Defence.} Qd8 {[%emt 0:00:02]} 7. d5 {[%emt 0:00:11]} Nb4 {[%emt 0:00:13]} (7... Qxd5 $2 8. Nxc7+ Kd8 9. Nxd5 $18) (7... Nxd5 $2 8. Qxd5 a6 9. Ng5 $18) 8. c4 {[%emt 0:00:06] White is slightly better.} c6 {[%emt 0:00:04] [#]} (8... Na6 $14) 9. dxc6 $1 $16 {[%emt 0:01:09]} bxc6 {[%emt 0:00:05]} 10. Qxd8+ {[%emt 0:00:56]} Kxd8 {[%emt 0:00:02][%cal Be8d8,Bd8c7,Bc7c6][%mdl 32]} 11. Nbd4 {[%emt 0:00:31]} e5 $146 {[%emt 0:01:31]} (11... c5 12. a3 cxd4 13. axb4 e5 14. c5 Nd7 15. Ng5 Ke8 16. Bc4 h6 17. Nxf7 Rh7 {1-0 Dyagilev,V (1991)-Pereboev,K (2248) Novokuznetsk op 2011 (8)}) 12. Nxe5 {[%emt 0:01:09]} Bc5 {[%emt 0:00:06]} 13. Ndxc6+ {[%emt 0:04:32]} Nxc6 {[%emt 0:00:25]} 14. Nxc6+ {[%emt 0:00:06]} Kc7 {[%emt 0:00:02]} 15. b4 {[%emt 0:01:09]} Re8+ {[%emt 0:00:20]} 16. Be2 {[%emt 0:00:24]} Bg4 {[%emt 0:16:20]} 17. f3 $1 {[%emt 0:00:38]} Kxc6 {[%emt 0:04:21]} 18. bxc5 {[%emt 0:00:19]} Bf5 {[%emt 0:04:28]} (18... Be6 $16 19. Kf2 Nd7) 19. Kf2 $18 {[%emt 0:01:44]} Nd7 {[%emt 0:00:02]} 20. Rd1 {[%emt 0:02:18]} Nxc5 {[%emt 0:00:44]} 21. Ba3 {[%emt 0:03:34]} ({White should play} 21. Be3 $18 {Bxc5 would now be deadly.} Be6 22. Rab1) 21... Na4 {[%emt 0:13:13]} (21... Be6 $16 {was worth a try.} 22. Rab1 a6) 22. Rd6+ {[%emt 0:02:13]} Kc7 {[%emt 0:10:43]} 23. Rc1 {[%emt 0:00:47]} Rad8 $2 {[%emt 0:04:58] [#]} (23... Nb6 24. c5 Nc8) 24. c5 {[%emt 0:00:27]} Bd7 {[%emt 0:00:01]} 25. Bb4 {[%emt 0:00:39] Weighted Error Value: White=0.04 (flawless) /Black=0.27 (precise)   Mistake:       	White=1     	Black=4      Inaccurate:     	---       	Black=2      OK:         	White=9     	Black=8      Best:        	White=3     	---        Strong:       	White=2     	---} 1-0

[Event "Budapest One Week IM-B 03-2025"]
[Site "Budapest"]
[Date "2025.03.20"]
[Round "6.5"]
[White "Luebke, Florentin"]
[Black "Kustar, Sandor"]
[Result "1/2-1/2"]
[Annotator "NA RC"]
[ECO "C15"]
[WhiteElo "2233"]
[BlackElo "2231"]
[PlyCount "40"]
[EventDate "2025.03.17"]
[EventType "tourn"]
[EventCountry "HUN"]
[SourceTitle "playchess.com"]
[Source "ChessBase"]
[SourceQuality "1"]
[TimeControl "5400+30"]

1. e4 {[%emt 0:00:04]} e6 {[%emt 0:00:09]} 2. d4 {[%emt 0:01:45]} d5 {[%emt 0:00:07]} 3. Nc3 {[%emt 0:00:07]} Bb4 {[%emt 0:00:16]} 4. Nge2 {[%emt 0:00:44]} Nc6 {[%emt 0:00:33]} 5. exd5 {[%emt 0:00:37]} exd5 {[%emt 0:00:45]} 6. a3 {[%emt 0:00:09]} Ba5 {[%emt 0:01:57]} 7. b4 {[%emt 0:00:42]} Bb6 {[%emt 0:00:06]} 8. Na4 {[%emt 0:01:38]} Nge7 {[%emt 0:14:56]} 9. c3 {[%emt 0:02:50]} O-O {[%emt 0:03:01]} 10. Nf4 {[%emt 0:03:41]} Qd6 {[%emt 0:09:50]} 11. Be2 {[%emt 0:12:45]} Bf5 {[%emt 0:01:23]} 12. O-O {[%emt 0:03:31]} Rae8 {[%emt 0:00:40]} 13. Bg4 {[%emt 0:04:16]} Nd8 {[%emt 0:04:19]} 14. Re1 {[%emt 0:09:27]} c6 {[%emt 0:01:50]} 15. Nxb6 {[%emt 0:02:40]} axb6 {[%emt 0:00:09]} 16. Bd2 {[%emt 0:01:04]} Qd7 {[%emt 0:02:26]} 17. h3 {[%emt 0:01:39]} Nc8 {[%emt 0:02:02]} 18. Be2 {[%emt 0:10:39]} h6 {[%emt 0:05:09]} 19. Nd3 {[%emt 0:14:26]} f6 {[%emt 0:00:48]} 20. Bf4 {[%emt 0:01:07]} Nd6 {[%emt 0:00:37]} 1/2-1/2

[Event "Budapest One Week IM-B 03-2025"]
[Site "Budapest"]
[Date "2025.03.21"]
[Round "7.1"]
[White "Kustar, Sandor"]
[Black "Pribelszky, Bence"]
[Result "1/2-1/2"]
[Annotator "TA"]
[ECO "C05"]
[WhiteElo "2231"]
[BlackElo "2400"]
[PlyCount "35"]
[EventDate "2025.03.17"]
[EventType "tourn"]
[EventCountry "HUN"]
[SourceTitle "playchess.com"]
[Source "ChessBase"]
[SourceQuality "1"]
[TimeControl "5400+30"]

{[%evp 25,35,0,3,0,53,27,91,0,29,0,65,0]} 1. d4 e6 2. e4 d5 3. Nd2 Nf6 4. e5 Nfd7 5. Ngf3 c5 6. c3 Nc6 7. Bd3 cxd4 8. cxd4 Qb6 9. O-O Nxd4 10. Nxd4 Qxd4 11. Nf3 Qb6 12. Qa4 Qb4 13. Qc2 Nc5 14. Bd2 {C06: French Tarrasch: 3...Nf6 4 e5 Nfd7 5 Bd3 main lines.} Qb6 $146 (14... Qa4 $11) (14... Qa4 15. b3 Qd7 16. Be2 Be7 17. Be3 b6 18. b4 Ne4 19. Nd4 a6 20. f3 Ng5 21. h4 h6 22. hxg5 hxg5 23. Nc6 Bb7 24. Nxe7 Qxe7 {1-0 Nihal,S (2687)-Akobian,V (2564) Titled Tuesday intern op 07th Jan Early blitz 2025 (3)}) 15. Be3 {[%mdl 1024] [#] White has compensation.} Qb4 (15... Bd7 $11 {remains equal.}) 16. Bd2 {White is much more active. The black rooks are passive.} (16. Be2 $16) 16... Qb6 $11 17. Be3 {Threatens to win with Rfc1.} Qb4 18. Bd2 {Weighted Error Value: White=0.38/Black=0.28 (precise)   Mistake:       	White=2     	Black=2      Inaccurate:     	White=1     	---        OK:         	---       	Black=2} ({Better is} 18. Bxh7 $14 a5 19. Rad1) 1/2-1/2

[Event "Budapest One Week IM-B 03-2025"]
[Site "Budapest"]
[Date "2025.03.21"]
[Round "7.2"]
[White "Varga, Zoltan"]
[Black "Luebke, Florentin"]
[Result "0-1"]
[Annotator "TA"]
[ECO "B29"]
[WhiteElo "2305"]
[BlackElo "2233"]
[PlyCount "58"]
[EventDate "2025.03.17"]
[EventType "tourn"]
[EventCountry "HUN"]
[SourceTitle "playchess.com"]
[Source "ChessBase"]
[SourceQuality "1"]
[TimeControl "5400+30"]

{[%evp 10,58,29,27,23,37,45,12,22,2,12,2,1,-9,-15,-15,6,4,-5,-20,4,-4,0,-24,-24,-29,-15,-43,-38,-22,20,-10,-5,-23,-27,-122,-107,-127,-85,-93,-81,-203,-183,-280,-209,-250,-167,-261,-302,-296,-302]} 1. e4 {[%emt 0:19:22][%cal Be2e4,Be4e5][%mdl 32]} c5 {[%emt 0:00:12]} 2. Nf3 {[%emt 0:00:05]} Nf6 {[%emt 0:00:06][%cal Bg8f6,Bf6d5,Bd5b4][%mdl 32]} 3. e5 {[%emt 0:00:34]} Nd5 {[%emt 0:00:10]} 4. Nc3 {[%emt 0:00:05]} e6 {[%emt 0:00:16]} 5. Ne4 {[%emt 0:00:16]} f5 {[%emt 0:00:19]} 6. Nc3 {[%emt 0:00:17]} Nb4 {[%emt 0:00:19] B29: Sicilian: 2 Nf3 Nf6 (Nimzowitsch Variation).} 7. Bc4 {[%emt 0:02:24]} a6 {[%emt 0:02:41]} 8. O-O {[%emt 0:00:32]} b5 {[%emt 0:02:52] The position is equal.} 9. Be2 {[%emt 0:00:46]} N4c6 $1 {[%emt 0:00:29]} 10. Re1 $146 {[%emt 0:00:39]} ({Predecessor:} 10. a4 b4 11. Nb1 Nd4 12. Nxd4 cxd4 13. Bf3 Nc6 14. d3 Qc7 15. Nd2 Bc5 16. Nc4 {½-½ Ter Sahakyan,S (2618)-Rakhmanov,A (2596) Karaganda Akim Cup 2024 (4)}) 10... Bb7 {[%emt 0:05:17]} 11. Bf1 {[%emt 0:03:56]} Nd4 {[%emt 0:03:35]} 12. Nxd4 {[%emt 0:03:43]} cxd4 {[%emt 0:00:07]} 13. Ne2 {[%emt 0:00:01]} Nc6 {[%emt 0:02:02]} 14. c3 {[%emt 0:01:21]} Qb6 {[%emt 0:08:34]} (14... Nxe5 {is interesting.} 15. Nxd4 Ng4 16. h3 Bd6) 15. a4 {[%emt 0:01:42]} b4 {[%emt 0:11:38]} 16. cxd4 {[%emt 0:16:46]} Nxd4 {[%emt 0:07:03]} 17. d3 {[%emt 0:00:11]} Bc5 {[%emt 0:04:00]} 18. Nxd4 {[%emt 0:05:22]} Bxd4 {[%emt 0:00:20]} 19. Qh5+ {[%emt 0:00:03]} Kf8 {[%emt 0:02:59]} 20. Qh4 {[%emt 0:00:43]} h6 {[%emt 0:01:04]} 21. a5 {[%emt 0:03:02]} g5 {[%emt 0:03:06]} 22. Qxh6+ {[%emt 0:05:31]} (22. Bxg5 $11 {remains equal.} Bxf2+ 23. Qxf2 Qxf2+ 24. Kxf2 hxg5 25. h3) 22... Rxh6 $17 {[%emt 0:00:35]} 23. axb6 {[%emt 0:00:02]} f4 $1 {[%emt 0:01:04][%cal Oa6a5] Black is much more active.} 24. Bd2 {[%emt 0:01:33] [#]} Kf7 $1 {[%emt 0:03:33] and ...a5 should not be overlooked} (24... Bxb6 25. Bxb4+ Kf7 26. Ba5 Bxa5 27. Rxa5 $16) (24... a5 $2 25. Rxa5 b3 (25... Rxa5 $2 26. Bxb4+ Kf7 27. Bxa5 $18) 26. Rb5 $18) 25. h3 {[%emt 0:13:51] This costs White the game.} (25. Rec1 $17) 25... a5 $19 {[%emt 0:09:45]} ({Weaker is} 25... Bxb2 26. Rab1 Bc3 27. Bxc3 bxc3 28. Rb3 $16) 26. Rec1 {[%emt 0:00:20]} (26. Rac1) 26... Bxb6 {[%emt 0:01:44]} 27. d4 {[%emt 0:00:01]} Bc6 {[%emt 0:02:23]} 28. Rxc6 {[%emt 0:08:07]} (28. Rd1 {was worth a try.}) 28... dxc6 {[%emt 0:00:11]} 29. Bxb4 {[%emt 0:00:18]} Bxd4 {[%emt 0:01:49] Weighted Error Value: White=0.32/Black=0.13 (very precise)   Mistake:       	White=4     	---        Inaccurate:     	White=3     	Black=2      OK:         	White=6     	Black=6      Best:        	White=2     	Black=1      Strong:       	---       	Black=3} 0-1